Cogmind - Beta 13 @@@ ROGUE MODE // 2024.04.01 @ 23:58:35 Player: chexo4 Result: Self-destructed Performance ------------- Evolutions (1) 500 Regions Visited (3) 600 Robots Destroyed (8) 40 Value Destroyed (190) 190 Prototype IDs (2) 40 Alien Tech Used (0) 0 Bonus (0) 0 TOTAL SCORE: 1370 Bonus ------- None Cogmind --------- Core Integrity 305/400 Matter 280/300 Energy 375/450 System Corruption 0% Temperature Cool (0) Movement Walking (125) Location -9/Materials Parts ------- > --- POWER (1) -------- Ion Engine > --- PROPULSION (4) --- Carbon-fiber Leg Titanium Leg > --- UTILITY (2) ------ Small Storage Unit Compact Battery > --- WEAPON (2) ------- (None) > --- INVENTORY (8) ---- VTOL Module VTOL Module Weight Redist. System Improved Targeting Computer Improved Light Armor Plating Light Assault Rifle Makeshift Shrapnel Gun Grenade Launcher Peak State ------------ > --- POWER ------------ (None) > --- PROPULSION ------- VTOL Module VTOL Module VTOL Module VTOL Module > --- UTILITY ---------- Small Storage Unit Compact Battery > --- WEAPON ----------- Shock Rifle Autogun > --- INVENTORY -------- Light Ion Engine Aluminum Leg Improved Light Armor Plating Medium Laser Assault Rifle Light Assault Rifle Makeshift Shrapnel Gun Grenade Launcher [Rating: 18] Favorites ----------- Power Light Ion Engine Engine Light Ion Engine Propulsion VTOL Module Leg Aluminum Leg Wheel Wheel Hover Unit Hover Unit Flight Unit VTOL Module Utility Small Storage Unit Device Weight Redist. System Storage Small Storage Unit Protection Improved Light Armor Plating Weapon Medium Laser Energy Gun Medium Laser Ballistic Gun Assault Rifle Build | -11 -10 -10 -9 ------- Run | Yrd Mat Min Mat Slots Evolved 2 | . . . 2 Power . | . . . . Propulsion 2 | . . . 2 Utility . | . . . . Weapon . | . . . . Parts Attached 37 | 7 3 5 22 Power 4 | 1 . . 3 Engine 4 | 1 . . 3 Core . | . . . . Reactor . | . . . . Propulsion 18 | 4 2 2 10 Treads . | . . . . Leg 10 | 2 . 2 6 Wheel 2 | 2 . . . Hover 2 | . 2 . . Flight 4 | . . . 4 Utility 9 | 1 . 2 6 Device 1 | . . . 1 Storage 7 | 1 . 1 5 Processor . | . . . . Hackware . | . . . . Protection 1 | . . 1 . Artifact . | . . . . Weapon 6 | 1 1 1 3 Energy Gun 3 | . 1 1 1 Energy Cannon . | . . . . Ballistic Gun 3 | 1 . . 2 Ballistic Cannon . | . . . . Launcher . | . . . . Special Weapon . | . . . . Impact Weapon . | . . . . Slashing Weapon . | . . . . Piercing Weapon . | . . . . Special Melee Weapon . | . . . . Unidentified Prototypes . | . . . . Parts Lost 5 | . . . 5 Power 1 | . . . 1 Propulsion 2 | . . . 2 Utility . | . . . . Weapon 2 | . . . 2 Highest Loss Streak 5 | . . . 5 To Critical Strikes . | . . . . Average Slot Usage (%) 91 | . 85 97 89 Engine 10 | . 14 14 8 Leg 13 | . . 23 9 Hover 2 | . 16 4 . Flight 16 | . . . 28 Storage 20 | . 14 21 21 Protection 1 | . . 4 . Energy Gun 11 | . 14 14 10 Ballistic Gun 10 | . 14 14 8 Naked Turns . | . . . . Heaviest Build 29 | 10 12 16 29 Greatest Support 47 | 20 20 27 47 Greatest Overweight (x) 3 | . . . 3 Average Overweight (x) . | . . . . Largest Inventory Capacity 15 | 8 8 8 15 Average Capacity 8 | 6 8 8 8 Most Carried 9 | 5 7 8 9 Average Carried 6 | 3 6 6 7 Final Capacity 8 | 8 8 8 8 Final Carried 8 | 5 7 7 8 Class Distribution -------------------- 57% | Mutant 42% | Sprinter Dominant Class ---------------- Mutant | -10/Materials Mutant | -10/Mines Sprinter | -9/Materials Resources | -11 -10 -10 -9 ----------- Run | Yrd Mat Min Mat Matter Collected 682 | 265 . 31 386 Remotely . | . . . . Salvage Created 301 | . . 39 262 Parts 19 | . . 2 17 Haulers Intercepted . | . . . . Recyclers Shooed 1 | . . . 1 Parts Field Recycled . | . . . . Retrieved Matter . | . . . . Parts Self-Destructed . | . . . . Prevented . | . . . . Kills | -11 -10 -10 -9 ------- Run | Yrd Mat Min Mat Combat Hostiles Destroyed 6 | . . 2 4 Guns 5 | . . 2 3 AOE 1 | . . . 1 Classes Destroyed 4 | . . 1 3 Builder 1 | . . . 1 Recycler 1 | . . . 1 Swarmer 2 | . . 2 . Grunt 4 | . . . 4 Best Kill Streak 2 | . . 2 2 Combat Bots Only 2 | . . 2 1 Max Kills in Single Turn 1 | . . 1 1 Gunslinging . | . . . . Exploded 1 | . . . 1 Melee . | . . . . Uniques/NPCs Destroyed . | . . . . Combat | -11 -10 -10 -9 -------- Run | Yrd Mat Min Mat Hostile Shots Fired 123 | . . 24 99 Missed 52 | . . 9 43 Damage Taken 714 | . . 124 590 Core 109 | . . 14 95 Absorbed by Shields . | . . . . Core Remaining (%) 97 | 100 . 94 . Volleys Fired 44 | . . 9 35 Largest 2 | . . 2 2 Hottest 73 | . . 70 73 Shots Fired 87 | . . 18 69 Gun 87 | . . 18 69 Cannon . | . . . . Launcher . | . . . . Special . | . . . . Kinetic 43 | . . 9 34 Thermal 31 | . . . 31 Explosive . | . . . . Electromagnetic 13 | . . 9 4 Robot Hit Streak 6 | . . 3 6 Robot Miss Streak 7 | . . 6 7 Penetration Max . | . . . . Secondary Targets 1 | . . 1 . Max Gunslinging Chain 1 | . . 1 . Shots Hit Robots 44 | . . 8 36 Core Hits 15 | . . 2 13 Critical Kills . | . . . . Critical Parts Destroyed . | . . . . Critical Strikes 3 | . . . 3 Burn 3 | . . . 3 Melee Attacks . | . . . . Impact . | . . . . Slashing . | . . . . Piercing . | . . . . Sneak Attacks . | . . . . Combat Hostiles . | . . . . Follow-up Attacks . | . . . . Damage Inflicted 728 | 1 . 151 576 Guns 667 | . . 117 550 Cannons . | . . . . Explosions 54 | . . 30 24 Melee . | . . . . Ramming 7 | 1 . 4 2 Kinetic 338 | . . 54 284 Thermal 282 | . . 30 252 Explosive . | . . . . Electromagnetic 101 | . . 63 38 Impact . | . . . . Slashing . | . . . . Piercing . | . . . . Highest Corruption . | . . . . Average Corruption . | . . . . Corruption Purged . | . . . . Corruption Blocked . | . . . . Overload Shots . | . . . . Overflow Damage 26 | . . 26 . Projectiles . | . . . . Explosions 26 | . . 26 . Melee . | . . . . Knockbacks . | . . . . Impact . | . . . . Kinetic . | . . . . Secondary . | . . . . Self-Inflicted Damage . | . . . . Shots . | . . . . Rammed 1 | 1 . . . Targets Rammed 3 | 1 . 1 1 Kicked 2 | . . 1 1 Crushed . | . . . . Highest Temperature 252 | . . 81 252 Average Temperature 104 | . . 41 112 Received Heat Transfer 231 | . . . 231 Siege Activations . | . . . . Robots Corrupted . | . . . . Combat Hostiles . | . . . . Parts Fried . | . . . . Impact Corruptions . | . . . . Robots Melted . | . . . . Combat Hostiles . | . . . . Parts Melted . | . . . . Heat Transferred 938 | . . 50 888 Parts Sabotaged . | . . . . Parts Stolen . | . . . . Parts Stripped . | . . . . Power Chain Reactions 2 | . . 1 1 Alert | -11 -10 -10 -9 ------- Run | Yrd Mat Min Mat Peak Influence 110 | . . 43 110 Initial 16 | . . . 16 Average 23 | . . 5 39 Maximum Alert Level . | . . . . Low Security (%) 100 | 100 100 100 100 Level 1 . | . . . . Level 2 . | . . . . Level 3 . | . . . . Level 4 . | . . . . Level 5 . | . . . . High Security . | . . . . Max Security . | . . . . Squads Dispatched 4 | . . 1 3 Investigation 3 | . . 1 2 Extermination . | . . . . Reinforcement 1 | . . . 1 Assault . | . . . . Garrison . | . . . . Intercept . | . . . . Searches Triggered . | . . . . Construction Impeded . | . . . . Haulers Reinforced . | . . . . Active Scanning Responses . | . . . . Cargo Convoy Interrupts . | . . . . Stealth | -11 -10 -10 -9 --------- Run | Yrd Mat Min Mat Distress Signals 2 | . . . 2 Communications Jammed . | . . . . Distress Signals . | . . . . Times Spotted 25 | . . 3 22 Peak Tracking Total 9 | . . 2 9 Tactical Retreats 1 | . . . 1 Traps | -11 -10 -10 -9 ------- Run | Yrd Mat Min Mat Traps Triggered 2 | . . . 2 Indirectly . | . . . . Trap Hack Attempts . | . . . . Triggered . | . . . . Disarmed . | . . . . Reprogrammed . | . . . . Reused . | . . . . Traps Extracted . | . . . . Installed . | . . . . Triggered . | . . . . Machines | -11 -10 -10 -9 ---------- Run | Yrd Mat Min Mat Machines Disabled 1 | . . . 1 Max in Single Turn 1 | . . . 1 Machines Repaired . | . . . . Machines Dismantled . | . . . . Machines Sabotaged . | . . . . Overloaded Fab Kills . | . . . . Hacking | -11 -10 -10 -9 --------- Run | Yrd Mat Min Mat Machines Accessed 3 | . . 1 2 Terminals 1 | . . . 1 Fabricators . | . . . . Repair Stations . | . . . . Recycling Units 1 | . . . 1 Scanalyzers . | . . . . Garrison Access . | . . . . Total Hacks 7 | . . 1 6 Successful 6 | . . 1 5 Failed 1 | . . . 1 Catastrophic 1 | . . . 1 Database Lockouts . | . . . . Manual . | . . . . Terminals 3 | . . . 3 Fabricators . | . . . . Repair Stations . | . . . . Recycling Units 3 | . . . 3 Scanalyzers . | . . . . Garrison Access . | . . . . Terminal Hacks 3 | . . 1 2 Prototype ID Bank 1 | . . . 1 Open Door 1 | . . 1 . Unreport Threat 1 | . . . 1 Fabricator Hacks . | . . . . Repair Station Hacks . | . . . . Recycling Unit Hacks 3 | . . . 3 Recycle Component 2 | . . . 2 Process 1 | . . . 1 Scanalyzer . | . . . . Garrison Access Hacks . | . . . . Unauthorized Hacks . | . . . . Terminals . | . . . . Fabricators . | . . . . Repair Stations . | . . . . Recycling Units . | . . . . Scanalyzers . | . . . . Garrison Access . | . . . . Data Cores Recovered . | . . . . Used . | . . . . Hacking Detections 2 | . . . 2 Full Trace Events 2 | . . . 2 Feedback Events . | . . . . Feedback Blocked . | . . . . Robot Schematics Acquired . | . . . . Robots Built . | . . . . Authchips . | . . . . Time . | . . . . Total Robot Build Rating . | . . . . Part Schematics Acquired . | . . . . Parts Built . | . . . . Authchips . | . . . . Time . | . . . . Total Part Build Rating . | . . . . Parts Repaired . | . . . . Time . | . . . . Parts Recycled 2 | . . . 2 Recycled Matter 175 | . . . 175 Retrieved Matter . | . . . . Retrieved Components . | . . . . Parts Scanalyzed . | . . . . Part Schematics Acquired . | . . . . Parts Damaged . | . . . . Bothacking | -11 -10 -10 -9 ------------ Run | Yrd Mat Min Mat Used RIF Installer . | . . . . Robots Hacked . | . . . . Non-combat . | . . . . Combat . | . . . . Robot Hacks Applied . | . . . . Relay Couplers Released . | . . . . Fabnet Peak Effective % . | . . . . Robots Rewired . | . . . . Allies Hacked . | . . . . Hacks Repelled . | . . . . Allies | -11 -10 -10 -9 -------- Run | Yrd Mat Min Mat Total Allies . | . . . . Largest Group . | . . . . Highest-Rated Group . | . . . . Highest-Rated Ally . | . . . . Total Orders . | . . . . Ally Attacks . | . . . . Total Damage . | . . . . Kills . | . . . . Allies Corrupted . | . . . . Allies Melted . | . . . . Intel | -11 -10 -10 -9 ------- Run | Yrd Mat Min Mat Robot Analysis Total . | . . . . Derelict Logs Recovered 1 | . . 1 . Drone Launches . | . . . . Drone Recoveries . | . . . . Exploration | -11 -10 -10 -9 ------------- Run | Yrd Mat Min Mat Turns Passed 752 | 57 51 232 412 Spaces Moved 916 | 55 73 183 605 Core 18 | 17 . . 1 Treads . | . . . . Legs 216 | . . 129 87 Wheels 50 | 38 12 . . Hover 115 | . 61 54 . Flight 517 | . . . 517 Fastest Speed 26 | 50 56 56 26 Average Speed 58 | 70 59 104 43 Slowest Speed 200 | 80 80 125 200 Overloaded Moves . | . . . . Propulsion Burnouts . | . . . . Robots Hopped 5 | . . . 5 Cave-ins Triggered . | . . . . Exploration Rate (%) 16 | 3 12 25 26 Regions Visited 3 Branch Regions 1 Pre-discovered Areas 1 | . . 1 . Known Exits Taken . | . . . . Unknown Exits Taken 3 | 1 1 1 . Scrap Searched . | . . . . Spaces Dug . | . . . . Terrain Destroyed 4 | . . 3 1 Melee . | . . . . Projectile . | . . . . AOE 4 | . . 3 1 Terrain Rammed . | . . . . Walls Destroyed . | . . . . Machines Disabled . | . . . . Actions | -11 -10 -10 -9 --------- Run | Yrd Mat Min Mat Total 1037 | 71 78 205 683 Wait . | . . . . Move 903 | 54 72 182 595 Hop 5 | . . . 5 Pick Up 30 | 9 3 4 14 Fast Attach 9 | 1 . 1 7 Attach 10 | 4 1 . 5 Detach 1 | . . . 1 Swap 18 | 2 2 4 10 Drop 14 | . . 4 10 Fire 44 | . . 9 35 Melee . | . . . . Ram 1 | 1 . . . Kick 2 | . . 1 1 Crush . | . . . . Escape Stasis . | . . . . Rewire . | . . . . Trap . | . . . . Miscellaneous . | . . . . Route ------- -11/Scrapyard -10/Materials -10/Mines -9/Materials History --------- Turn | Location | Event 3 | -11/Scrapyard | Discovered new exit (range 16) 58 | -11/Scrapyard | Entered Materials 100 | -10/Materials | Discovered new exit (range 13) 109 | -10/Materials | Entered Mines 136 | -10/Mines | Met a Derelict shopkeep closing up shop 261 | -10/Mines | Learned location of Storage (-7) 286 | -10/Mines | A weapon hastily lodged in a ceiling crevice suddenly fell to the ground 301 | -10/Mines | Build established: Mutant 334 | -10/Mines | Discovered new exit (range 5) 341 | -10/Mines | Entered Materials 341 | -9/Materials | Evolved 2 slots: Propulsion x2 718 | -9/Materials | Build established: Sprinter 753 | -9/Materials | Self-destructed Last Messages --------------- Dropped Med. Storage Unit. Acquired Sml. Storage Unit. Acquired Carbon-fiber Leg. Acquired Grenade Launcher. Acquired Imp. Targeting Computer. G-34 Mercenary suffers critical hit (Burn). K-01 Serf collects debris. Terminal unresponsive. K-01 Serf collects debris. Acquired 36 matter. R-06 Scavenger collects Imp. Heat Sink. U-05 Engineer destroyed. Autogun destroyed. G-34 Mercenary destroyed. W-16 Scout sends out distress signal. Ion Engine destroyed. VTOL Module destroyed. Acquired Ion Engine. Med. Laser destroyed. Kicked A-02 Transporter out of the way. Map ----- +----------------------------------------------------+ | ????????????????????????# #?????????????# " | | ??????????????########### """#?????????????# " | | ??????????????# # Y"#?????????????# | | ??????????????# # """#?????????????? | | ??????????????# # #???????????????? | | ???##########?# #+##+###????????????????# | | ???# #?# # #??????????????????# | | ???# ! #?# # #??????????????????# | | ???# #?# # ##+######?????????????# | | ???# #?# + # ] !!]#?????????????# | | ???# #######+##### # ]#?????????????# | | ???# =+% ##### # #?????????????# | | ???# #[ T + #????????????## | | ???# # ### % #############/######## | | ???# *== # #?# |%!= % | | ???##+###+### #?# =*% | | ????# #?# [ = | | ????# #?# #########+### ####### | | ????# #### ####?# ######?? ?# #?????## | | ????# #??# #????# %s ## #?? ?# #??????? | | ????# #??# #????# s## #? "" # ######## | | ????# #??# # ??# """s ## #?S"" # | | ????# #??# # !# """ ## # "" # | | ????# #??# # |=+ """ ## # !# | | ?####+#### # # """ ## ###########/####### | | # # ###### @## #???????# #??? | | # """" # ###+########## / #??? | | # """" # a * %!+ [/ #??? | | # """" # % * ######## [ #??? | | # + r ########+#####???# #??? | | # """" # ######g###### =%! #???# #??? | | # """" # ## # ["" #???########??? | | # """" ##### "" #== T" #?????????????? | | #? #???#! Y" #= "" ##????????????? | | ??########???#!! / "" # #????????????? | | ?????????????#! #== ##????????????? | | ?????????????# # #?????????????? | | ?????????????# # #?????????????? | | ?????????????######################?????????????? | | | | | | | | | | | | | | | | | | | | | | | +----------------------------------------------------+ Best States ------------- Heat Dissipation 28 Energy Generation 10 Energy Capacity 450 Matter Stores 300 Matter Capacity 300 Sight Range 16 Terrain Scan Density 10 Additional Mass Support 6 Armor Coverage 150 Evasion (%) 64 Item Schematics ----------------- None Robot Schematics ------------------ None Fabricated ------------ Nothing Alien Tech Used ----------------- None Achievements -------------- None Challenges ------------ None Game ------ Seed AntigravDronePerforator Manual? 0 Play Time 00:17:15 Cumulative 2.5 hours Start 2024.04.01 @ 23:42:01 End 2024.04.01 @ 23:58:35 Sessions 1 Manual Loads 0 Difficulty Rogue Special Mode None Game No. 8 Rogue 8 Adventurer 0 Explorer 0 Win Type - Total 0 Types 0/0/0/0/0/0/0/0/0 Lore% 7 Gallery% 7 Achievement% 6 Wizard Run 0 Options --------- Layout 1 ASCII 0 Keyboard 0 Movement Arrows Keybinds 0 Fullscreen 1 Font 24/Smallcaps Map View 50x35 Zoom Use 0% Tactical HUD 0 Map Filters NONE Filters NONE Steam 1 RUN: 897a75e0-4a88-4f81-ab7e-4ced4374c0fa